bitfinex/quotes_SOLUSD_20240906
["timestamp","ask_amount","ask_price","bid_price","bid_amount"]
[1725627467590,1.2,133.94,133.92,7.4667]
[1725627468306,1.2,133.94,133.91,26.1357]
[1725627469113,8.666,133.94,133.9,21.28794]
[1725627469288,8.666,133.94,133.88,56.0168]
[1725627469289,7.4676,133.92,133.88,26.1414]
[1725627469799,19.8654,133.94,133.86,16.448]
[1725627470109,19.8654,133.94,133.87,18.6746]
[1725627470308,1.2,133.94,133.89,18.6718]
[1725627470607,8.6664,133.94,133.9,7.4679]
[1725627471102,1.2,133.94,133.89,18.6718]
[1725627471301,1.2,133.94,133.89,26.1405]
[1725627471510,7.467,133.93,133.89,18.6718]
[1725627471687,1.2,133.94,133.89,18.6718]
[1725627472091,1.2,133.94,133.86,35.1232]
[1725627472283,46.2,133.94,133.86,35.1232]
[1725627472509,7.4685,133.9,133.86,42.5934]
[1725627473011,7.4677,133.91,133.87,7.4697]
[1725627473708,7.4673,133.92,133.88,7.4693]
[1725627474328,18.6638,133.95,133.87,7.4697]
[1725627474329,7.4677,133.91,133.87,7.4697]
[1725627474686,7.4672,133.92,133.88,7.4692]
[1725627475010,7.4677,133.91,133.87,7.4697]
[1725627475481,18.6638,133.95,133.86,35.1232]
[1725627475482,7.4672,133.92,133.88,26.1421]
[1725627475684,7.4672,133.92,133.89,1.49328561]
[1725627475905,7.4672,133.92,133.88,26.1421]
[1725627476113,7.4672,133.92,133.89,7.4687]
[1725627476411,7.4667,133.93,133.89,7.4687]
[1725627476981,7.4672,133.92,133.88,26.1423]
[1725627478300,7.4678,133.91,133.88,18.6733]
[1725627478616,7.467,133.93,133.88,18.6733]
[1725627478914,7.4672,133.92,133.88,26.1424]
[1725627479422,7.4662,133.94,133.9,7.4681]
[1725627479593,7.4666,133.93,133.89,7.4686]
[1725627480117,7.4672,133.92,133.88,26.1422]
[1725627480417,18.6623,133.96,133.88,18.6733]
[1725627480610,7.4669,133.93,133.89,7.4686]
[1725627482601,7.4661,133.94,133.9,7.4681]
[1725627482803,7.4667,133.93,133.89,7.4686]
[1725627483010,18.6623,133.96,133.89,7.4686]
[1725627483011,7.4671,133.92,133.89,7.4686]
[1725627483214,7.4671,133.92,133.88,26.1424]
[1725627483905,7.4667,133.93,133.89,7.4687]
[1725627484114,7.4667,133.93,133.9,7.4682]
[1725627484300,16.121,133.99,133.92,7.4671]
[1725627484301,18.6589,133.99,133.92,7.4671]
[1725627484607,7.4641,133.98,133.94,7.4659]
[1725627484792,53.1678,134.03,133.93,18.6663]
[1725627484793,6.5686,134.04,133.95,1.49263942]
[1725627485117,6.5686,134.04,134.0,7.4623]
[1725627485118,7.4605,134.04,134.0,7.4623]
[1725627485296,7.46,134.05,134.0,7.4623]
[1725627485495,7.4605,134.04,134.0,7.4623]
[1725627486207,7.4605,134.04,133.99,26.1209]
[1725627486423,7.4611,134.03,133.99,26.1209]
[1725627487129,7.4606,134.04,133.99,26.1209]
[1725627487296,7.4606,134.04,134.0,7.4625]
[1725627488014,7.4606,134.04,133.99,26.1208]
[1725627488210,7.4606,134.04,134.0,7.4626]
[1725627488897,7.4606,134.04,133.99,26.1208]
[1725627489209,7.461,134.03,133.99,26.1208]
[1725627489419,39.16090923,134.07,133.94,21.1757]
[1725627489610,45.0,134.06,133.94,21.1757]
[1725627489911,7.4636,133.99,133.95,7.4654]
[1725627490110,1.86572588,134.01,133.94,21.1757]
[1725627490320,18.6573,134.0,133.9,48.1682]
[1725627490513,7.4661,133.94,133.9,22.0303]
[1725627490710,7.4667,133.93,133.9,22.0303]
[1725627491012,7.4666,133.93,133.9,15.377]
[1725627491206,6.5366,134.0,133.9,22.8449]
[1725627491207,7.4662,133.94,133.9,22.8449]
[1725627491523,6.5366,134.0,133.9,22.8449]
[1725627491524,18.6613,133.97,133.9,15.377]
[1725627491693,7.4666,133.93,133.88,26.1417]
[1725627492123,45.0,133.96,133.88,18.6729]
[1725627492417,18.6613,133.97,133.88,18.6729]
[1725627492928,6.5366,134.0,133.9,7.4677]
[1725627492929,25.1941,134.0,133.9,7.4677]
[1725627493229,45.0,133.99,133.9,7.4677]
[1725627493815,45.0,133.99,133.89,7.4687]
[1725627493816,7.4664,133.94,133.89,7.4687]
[1725627494016,18.6601,133.98,133.88,26.1422]
[1725627494017,7.4673,133.92,133.88,26.1422]
[1725627494797,7.4661,133.94,133.89,8.96200627]
[1725627495000,7.4656,133.95,133.9,8.96110779]
[1725627495200,7.4656,133.95,133.9,7.468]
[1725627495418,7.4656,133.95,133.91,7.4676]
[1725627495620,6.5366,134.0,133.92,7.4666]
[1725627495918,6.5366,134.0,133.9,18.6701]
[1725627495919,18.66,133.98,133.9,18.6701]
[1725627496128,18.66,133.98,133.86,23.1636]
[1725627496129,18.6626,133.96,133.87,18.6745]
[1725627496340,7.4667,133.93,133.88,7.4689]
[1725627496539,7.4671,133.92,133.88,7.4689]
[1725627496699,7.4655,133.95,133.9,7.4677]
[1725627497013,25.1946,134.0,133.9,7.4677]
[1725627497014,7.4661,133.94,133.9,7.4677]
[1725627497202,7.4661,133.94,133.89,26.1392]
[1725627497520,7.4661,133.94,133.9,7.4682]
[1725627497821,7.4655,133.95,133.91,7.4673]
[1725627498241,7.465,133.96,133.91,7.4673]
[1725627498824,7.4654,133.95,133.91,7.4673]
[1725627499142,18.6601,133.98,133.9,7.4681]
[1725627499315,7.4658,133.95,133.9,7.4681]
[1725627499509,6.5366,134.0,133.87,37.3477]
[1725627499733,7.4638,133.98,133.88,1.49292663]
[1725627499938,7.4649,133.96,133.87,82.05995034]
[1725627500140,7.4649,133.96,133.92,7.4667]
[1725627500309,7.4645,133.97,133.92,7.4667]
[1725627500515,31.7331339,134.01,133.94,7.466]
[1725627500516,7.4642,133.98,133.94,7.466]
[1725627500715,7.4642,133.98,133.95,1.49271904]
[1725627500916,7.4644,133.97,133.93,7.4663]
[1725627501225,7.463,134.0,133.96,18.6619]
[1725627501527,7.4633,133.99,133.96,20.15438284]
[1725627501734,7.4627,134.0,133.96,18.6619]
[1725627502113,18.6514,134.04,133.9,15.2877]
[1725627502114,673.8729,133.95,133.9,15.2877]
[1725627502514,673.8729,133.95,133.91,52.67182022]
[1725627502731,673.8729,133.95,133.91,51.17895034]
[1725627503038,673.8729,133.95,133.94,7.466]
[1725627505150,673.8729,133.95,133.93,7.4661]
[1725627505357,673.8729,133.95,133.92,18.6675]
[1725627505844,681.3384,133.95,133.92,18.6675]
[1725627506366,673.8729,133.95,133.92,18.6675]
[1725627506566,681.3383,133.95,133.91,13.934]
[1725627506768,681.3383,133.95,133.91,7.4673]
[1725627507062,673.8729,133.95,133.91,7.4673]
[1725627507264,673.8729,133.95,133.93,7.4665]
[1725627507464,673.8729,133.95,133.91,18.6688]
[1725627507760,673.8729,133.95,133.92,7.467]
[1725627508839,681.3386,133.95,133.91,26.1363]
[1725627509765,7.4666,133.93,133.9,15.2877]
[1725627510266,673.8729,133.95,133.86,15.0188]
[1725627510476,673.8729,133.95,133.83,7.4717]
[1725627510477,7.4694,133.88,133.83,7.4717]
[1725627510638,7.4694,133.88,133.82,40.3361]
[1725627511154,7.4706,133.86,133.82,15.6203]
[1725627511344,7.47,133.87,133.82,23.0926]
[1725627511667,6.533,133.91,133.82,15.6203]
[1725627511881,6.533,133.91,133.84,7.4711]
[1725627511882,7.4692,133.89,133.84,7.4711]
[1725627512040,6.533,133.91,133.84,7.4711]
[1725627512244,7.4697,133.88,133.83,26.1518]
[1725627512562,7.47,133.87,133.83,26.1518]
[1725627512950,18.6728,133.89,133.81,0.8774346]
[1725627513165,1.8677373,133.88,133.81,0.8774346]
[1725627513353,45.0,133.88,133.81,0.8774346]
[1725627513553,7.4711,133.85,133.81,0.8774346]
[1725627514097,7.4703,133.87,133.82,18.6804]
[1725627514254,6.533,133.91,133.81,0.8774346]
[1725627514579,7.4706,133.86,133.82,7.4726]
[1725627514955,18.671,133.9,133.81,19.5600346]
[1725627515153,7.4703,133.87,133.82,7.4726]
[1725627515774,7.4703,133.87,133.83,7.4721]
[1725627515979,7.4703,133.87,133.82,7.4725]
[1725627516678,20.5383875,133.9,133.82,7.4725]
[1725627516679,7.4705,133.86,133.82,7.4725]
[1725627516871,18.671,133.9,133.82,7.4725]
[1725627517057,7.4709,133.86,133.81,27.0331346]
[1725627518350,7.4711,133.85,133.81,19.5600346]
[1725627518785,7.4709,133.86,133.81,27.0327346]
[1725627519161,7.4711,133.85,133.81,27.0327346]
[1725627519576,7.4706,133.86,133.82,7.4725]
[1725627521157,6.533,133.91,133.83,18.6799]
[1725627521381,7.4702,133.87,133.83,26.1518]
[1725627521565,7.4717,133.84,133.81,0.8774346]
[1725627522180,7.4727,133.82,133.81,0.8774346]
[1725627522357,6.0264,133.87,133.74,18.692]
[1725627522358,7.4756,133.77,133.74,18.692]
[1725627522691,16.121,133.85,133.74,26.1691]
[1725627522692,7.475,133.78,133.74,26.1691]
[1725627522856,7.4734,133.81,133.74,18.692]
[1725627523185,7.4733,133.81,133.76,26.1653]
[1725627523483,7.4733,133.81,133.77,7.4754]
[1725627523669,7.4724,133.83,133.77,7.4754]
[1725627523861,7.4733,133.81,133.73,35.0915]
[1725627524062,7.4733,133.81,133.75,7.4761]
[1725627524284,7.4722,133.83,133.77,7.475]
[1725627524480,7.4719,133.84,133.79,7.4743]
[1725627524665,7.4719,133.84,133.78,18.6872]
[1725627524666,7.4712,133.85,133.81,7.4732]
[1725627524983,7.4706,133.86,133.82,7.4725]
[1725627525192,7.4706,133.86,133.81,7.473]
[1725627525565,7.4706,133.86,133.82,7.4726]
[1725627525774,7.4697,133.88,133.84,7.4714]
[1725627525980,6.519,133.9,133.84,1.49381163]
[1725627526191,6.519,133.9,133.86,7.4704]
[1725627526488,21.00510798,133.94,133.86,7.4704]
[1725627526489,6.2709,133.94,133.88,7.4692]
[1725627526788,6.2709,133.94,133.86,18.6753]
[1725627526789,7.4675,133.92,133.86,18.6753]
[1725627527090,7.4675,133.92,133.87,7.4698]
[1725627527293,13.7372,133.94,133.88,18.6729]
[1725627527586,7.4667,133.93,133.89,7.4687]
[1725627527797,7.4667,133.93,133.88,18.6729]
[1725627527798,7.4667,133.93,133.88,26.1421]
[1725627527958,7.4681,133.91,133.86,7.4704]
[1725627528159,7.4673,133.92,133.87,7.4697]
[1725627528801,6.2709,133.94,133.85,26.1474]
[1725627528968,6.2709,133.94,133.86,7.4703]
[1725627528969,7.4682,133.9,133.86,7.4703]
[1725627529482,7.4677,133.91,133.87,7.4698]
[1725627530166,6.2709,133.94,133.87,7.4698]
[1725627530167,7.4672,133.92,133.87,7.4698]
[1725627530870,7.4677,133.91,133.85,18.6769]
[1725627531079,1.86706739,133.93,133.86,7.4703]
[1725627531288,1.86711737,133.92,133.86,7.4703]
[1725627531790,7.4682,133.9,133.86,7.4703]
[1725627532368,7.4695,133.88,133.82,18.6807]
[1725627532566,7.4695,133.88,133.83,7.4717]
[1725627532972,7.47,133.87,133.82,26.1532]
[1725627533593,7.4705,133.86,133.82,26.1532]
[1725627533766,7.471,133.85,133.81,22.6958]
[1725627534090,6.4705,133.86,133.79,26.1591]
[1725627534298,1.86805315,133.85,133.79,26.1591]
[1725627534471,6.4705,133.86,133.79,26.1591]
[1725627535168,6.4705,133.86,133.8,7.4737]
[1725627535390,6.4705,133.86,133.81,7.4732]
[1725627535697,7.4712,133.85,133.81,7.4732]
[1725627536081,7.4717,133.84,133.8,7.4736]
[1725627536299,6.4705,133.86,133.79,18.6849]
[1725627536471,7.4722,133.83,133.79,26.1589]
[1725627536894,7.4729,133.82,133.77,7.475]
[1725627537367,25.1472,133.86,133.78,7.4747]
[1725627537569,7.473,133.82,133.78,7.4747]
[1725627537768,7.473,133.82,133.77,7.4753]
[1725627537986,7.4733,133.81,133.77,7.4753]
[1725627538590,6.4705,133.86,133.76,34.8462]
[1725627538792,7.4744,133.79,133.76,34.8462]
[1725627538999,7.4744,133.79,133.75,7.4764]
[1725627539188,18.682,133.82,133.73,26.1708]
[1725627539386,46.86884915,133.81,133.73,26.1708]
[1725627539900,45.0,133.81,133.74,7.4771]
[1725627540081,7.4732,133.82,133.75,18.6912]
[1725627540281,7.4732,133.82,133.76,7.4759]
[1725627540586,7.4732,133.82,133.78,7.4749]
[1725627540791,7.4732,133.82,133.77,18.6885]
[1725627540792,7.4719,133.84,133.79,7.4743]
[1725627541090,7.4711,133.85,133.8,7.4738]
[1725627541290,13.941,133.86,133.81,7.473]
[1725627541596,12.92697116,133.88,133.84,7.4713]
[1725627541775,6.432,133.89,133.83,18.6797]
[1725627542294,13.9012,133.89,133.84,7.4712]
[1725627542509,17.56737554,133.93,133.85,18.6771]
[1725627542510,6.4297,133.92,133.85,18.6771]
[1725627542673,7.468,133.91,133.85,18.6771]
[1725627542995,7.4683,133.9,133.86,7.4703]
[1725627543197,6.4297,133.92,133.83,15.274]
[1725627543198,6.4297,133.92,133.88,7.4693]
[1725627543399,13.8972,133.92,133.87,26.144]
[1725627543605,7.4677,133.91,133.87,26.144]
[1725627543773,7.4677,133.91,133.87,18.6742]
[1725627544399,7.4677,133.91,133.83,15.274]
[1725627544400,6.4297,133.92,133.84,18.6779]
[1725627544677,7.4691,133.89,133.84,26.1491]
[1725627544899,7.4691,133.89,133.85,7.471]
[1725627545477,7.4682,133.9,133.86,7.4704]
[1725627546692,7.4691,133.89,133.85,7.4708]
[1725627547003,7.4684,133.9,133.86,7.4703]
[1725627550209,7.4678,133.91,133.87,7.4695]
[1725627550427,680.0487,133.95,133.9,7.4681]
[1725627550708,7.4664,133.94,133.9,7.4681]
[1725627551289,7.4666,133.93,133.89,7.4687]
[1725627551614,7.4662,133.94,133.9,7.4682]
[1725627551786,7.4669,133.93,133.89,7.4687]
[1725627551988,7.4682,133.9,133.86,7.47]
[1725627552182,7.4682,133.9,133.85,26.147]
[1725627552388,7.4694,133.88,133.84,7.4712]
[1725627552696,7.469,133.89,133.84,7.4712]
[1725627553608,7.4683,133.9,133.81,82.5962]
[1725627553919,18.6666,133.93,133.86,18.6757]
[1725627554125,7.4688,133.89,133.86,18.6757]
[1725627555008,7.4688,133.89,133.85,7.4708]
[1725627555186,45.0,133.92,133.83,18.679]
[1725627555187,7.4704,133.87,133.83,26.1508]
[1725627555387,7.4707,133.86,133.81,22.8015]
[1725627555582,7.4688,133.9,133.85,7.4705]
[1725627555786,63.669,133.92,133.84,18.6789]
[1725627556192,7.4692,133.89,133.85,7.4706]
[1725627556506,7.4681,133.91,133.87,7.4699]
[1725627556713,7.4682,133.9,133.87,7.4699]
[1725627557488,7.4682,133.9,133.86,26.1461]
[1725627557797,7.4689,133.89,133.86,18.6759]
[1725627558214,7.4683,133.9,133.86,26.1459]
[1725627559507,18.6672,133.93,133.86,18.6759]
[1725627560106,18.6672,133.93,133.87,7.4698]
[1725627560107,7.4681,133.91,133.87,7.4698]
[1725627560598,673.8729,133.95,133.85,16.3904]
[1725627560797,673.8729,133.95,133.9,18.6702]
[1725627560798,681.3387,133.95,133.9,18.6702]
[1725627561013,681.3387,133.95,133.9,26.1382]
[1725627561787,7.4661,133.94,133.9,26.1382]
[1725627562201,681.3385,133.95,133.91,7.4676]
[1725627563799,681.3385,133.95,133.9,26.1382]
[1725627564109,681.3384,133.95,133.9,26.1382]
[1725627564796,673.8729,133.95,133.9,18.6702]
[1725627565217,673.8729,133.95,133.9,26.1384]
[1725627566320,681.3384,133.95,133.9,26.1384]
[1725627566723,681.3384,133.95,133.91,7.4676]
[1725627566912,673.8729,133.95,133.9,18.6702]
[1725627567226,7.4664,133.94,133.89,7.4683]
[1725627567428,681.3385,133.95,133.9,7.4681]
[1725627567635,7.466,133.94,133.89,7.4686]
[1725627569122,7.4671,133.92,133.88,7.4692]
[1725627569332,7.4681,133.91,133.87,18.6741]
[1725627569931,7.4675,133.92,133.87,26.1436]
[1725627570432,692.5372,133.95,133.87,18.6741]
[1725627570433,673.8729,133.95,133.87,18.6741]
[1725627570602,7.467,133.93,133.88,7.4689]
[1725627570807,7.467,133.93,133.87,18.6741]
[1725627571232,7.4661,133.94,133.89,7.4683]
[1725627571715,7.4661,133.94,133.9,7.4681]
[1725627572035,7.4667,133.93,133.89,26.1401]
[1725627572529,7.4662,133.94,133.89,26.1401]
[1725627573228,1.86652329,133.94,133.85,42.5374]
[1725627573425,63.6653,133.94,133.85,35.0669]
[1725627573631,7.4681,133.91,133.87,7.4695]
[1725627574199,7.4671,133.93,133.87,18.674]
[1725627574443,7.4671,133.92,133.88,7.4691]
[1725627575203,673.8729,133.95,133.89,7.4687]
[1725627575204,7.4667,133.93,133.89,7.4687]
[1725627575399,7.4667,133.93,133.87,18.674]
[1725627575400,7.4677,133.91,133.87,18.674]
[1725627575606,7.4673,133.92,133.87,26.1438]
[1725627575818,692.537,133.95,133.87,26.1438]
[1725627576025,7.4677,133.91,133.87,26.1438]
[1725627576216,692.537,133.95,133.85,16.3904]
[1725627576217,7.4686,133.9,133.85,16.3904]
[1725627576404,7.4688,133.89,133.85,23.8613]
[1725627576602,7.4682,133.91,133.87,7.4698]
[1725627578032,18.6697,133.91,133.85,16.3904]
[1725627578328,7.47,133.87,133.85,16.3904]
[1725627578527,7.4696,133.88,133.85,16.3904]
[1725627578735,7.469,133.89,133.85,23.8613]
[1725627578947,18.6697,133.91,133.85,16.3904]
[1725627579310,7.4695,133.88,133.85,16.3904]
[1725627579511,18.6697,133.91,133.85,16.3904]
[1725627579732,7.4695,133.88,133.85,16.3904]
[1725627580148,711.2016,133.95,133.85,16.3904]
[1725627580149,7.4684,133.9,133.85,16.3904]
[1725627580854,7.4678,133.91,133.87,7.4697]
[1725627581351,7.4678,133.91,133.87,6.16897721]
[1725627582033,1.30096356,133.9,133.87,6.16897721]
[1725627582750,8.76966356,133.9,133.85,42.5384]
[1725627582940,8.76966356,133.9,133.85,35.0676]
[1725627583146,1.30096356,133.9,133.85,16.3904]
[1725627583654,7.47,133.87,133.82,26.1533]
[1725627583856,7.4706,133.86,133.82,26.1533]
[1725627584462,7.47,133.87,133.82,26.1534]
[1725627584647,7.47,133.87,133.83,8.96590296]
[1725627584843,7.4688,133.89,133.84,8.96497405]
[1725627585151,7.4688,133.89,133.84,7.4711]
[1725627585533,8.76926356,133.9,133.85,1.49369765]
[1725627585855,1.30096356,133.9,133.86,1.49362317]
[1725627586350,1.30096356,133.9,133.86,26.146]
[1725627586736,1.30096356,133.9,133.87,7.4699]
[1725627587251,1.30096356,133.9,133.86,26.146]
[1725627587252,8.76926356,133.9,133.86,26.146]
[1725627587629,1.30096356,133.9,133.86,26.146]
[1725627588240,8.76916356,133.9,133.86,26.146]
[1725627588566,8.76916356,133.9,133.86,18.6757]
[1725627589351,1.30096356,133.9,133.86,18.6757]
[1725627589531,1.30096356,133.9,133.82,59.7934]
[1725627589532,1.30096356,133.9,133.88,26.1415]
[1725627589729,1.30096356,133.9,133.85,18.6765]
[1725627589960,1.30096356,133.9,133.86,7.47]
[1725627590258,1.30096356,133.9,133.89,7.4688]
[1725627590430,1.30096356,133.9,133.87,107.7785]
[1725627590431,673.8729,133.95,133.91,7.4675]
[1725627590629,673.8729,133.95,133.92,7.467]
[1725627591244,681.3383,133.95,133.91,7.4675]
[1725627591445,7.4661,133.94,133.9,26.1383]
[1725627592056,673.8729,133.95,133.9,18.6702]
[1725627592435,681.3383,133.95,133.91,7.4672]
[1725627592645,7.466,133.94,133.9,26.1382]
[1725627592950,7.4665,133.93,133.89,7.4686]
[1725627593653,1.30064832,133.94,133.87,15.6331]
[1725627593654,3.16729955,133.94,133.87,15.6331]
[1725627593829,7.4683,133.9,133.87,15.6331]
[1725627594028,7.4689,133.89,133.86,18.6751]
[1725627594653,7.4704,133.87,133.83,35.1058]
[1725627594857,18.6704,133.91,133.83,42.5778]
[1725627595038,45.0,133.9,133.83,42.5778]
[1725627595233,45.0,133.9,133.83,35.1058]
[1725627595441,45.0,133.9,133.83,42.5779]
[1725627595639,18.6704,133.91,133.83,42.5779]
[1725627595640,7.4699,133.87,133.83,42.5779]
[1725627595957,7.4697,133.88,133.84,7.4715]
[1725627596143,18.6704,133.91,133.83,35.1058]
[1725627596542,18.6704,133.91,133.83,18.6801]
[1725627596543,1.86744487,133.9,133.83,18.6801]
[1725627596729,46.86744487,133.9,133.83,18.6801]
[1725627596932,7.4701,133.87,133.83,18.6801]
[1725627597359,7.4701,133.87,133.83,26.1521]
[1725627598547,7.4705,133.86,133.83,18.6801]
[1725627598746,7.4713,133.85,133.81,7.4731]
[1725627600253,45.0,133.84,133.76,15.908]
[1725627600456,18.6864,133.79,133.72,15.908]
[1725627600659,45.0,133.84,133.72,15.908]
[1725627600847,7.4751,133.78,133.73,7.4773]
[1725627601049,7.4751,133.78,133.74,7.4771]
[1725627601253,18.6825,133.82,133.73,18.6938]
[1725627601449,45.0,133.81,133.73,18.6938]
[1725627601649,7.4756,133.77,133.72,15.908]
[1725627601872,13.02781223,133.84,133.72,38.338]
[1725627602038,7.4728,133.82,133.77,7.4754]
[1725627602239,6.2793,133.86,133.77,7.4754]
[1725627602240,24.956,133.86,133.77,7.4754]
[1725627602439,7.4732,133.82,133.78,7.4748]
[1725627602639,7.4732,133.82,133.77,7.4754]
[1725627602855,7.4711,133.85,133.8,7.4736]
[1725627603055,24.6888,133.89,133.8,18.684]
[1725627603269,24.6888,133.89,133.8,26.1577]
[1725627603576,24.6888,133.89,133.8,18.684]
[1725627603745,11.24734825,133.91,133.82,18.6812]
[1725627603945,1.30064832,133.94,133.88,18.6726]
[1725627604148,1.30064832,133.94,133.89,7.4683]
[1725627604353,1.30064832,133.94,133.88,26.1418]
[1725627604652,1.30064832,133.94,133.9,7.4681]
[1725627604848,1.30064832,133.94,133.9,7.4677]
[1725627605067,1.30064832,133.94,133.91,7.4675]
[1725627605582,673.8729,133.95,133.92,18.6669]
[1725627605583,658.50694832,133.95,133.92,18.6669]
[1725627605868,658.50694832,133.95,133.94,7.466]
[1725627606169,658.50694832,133.95,133.88,35.2573]
[1725627606477,658.50694832,133.95,133.88,42.7261]
[1725627606478,7.466,133.94,133.88,42.7261]
[1725627606672,7.466,133.94,133.89,7.4686]
[1725627606987,658.50694832,133.95,133.88,35.2573]
[1725627606988,665.97244832,133.95,133.88,35.2573]
[1725627607647,658.50694832,133.95,133.9,7.4677]
[1725627607844,658.50694832,133.95,133.9,26.1372]
[1725627608069,665.97254832,133.95,133.9,26.1372]
[1725627608761,658.50694832,133.95,133.91,7.4676]
[1725627609267,658.50694832,133.95,133.92,7.4669]
[1725627609564,658.50694832,133.95,133.94,7.466]
[1725627609774,641.84034832,133.95,133.94,7.466]
[1725627609978,641.84034832,133.95,133.94,100.9796]
[1725627609979,432.02902438,133.95,133.94,100.9796]
[1725627610565,432.02902438,133.95,133.94,7.466]
[1725627610770,432.02902438,133.95,133.92,18.6669]
[1725627610980,432.02902438,133.95,133.93,7.4664]
[1725627611144,432.02902438,133.95,133.92,18.6669]
[1725627611763,432.02902438,133.95,133.93,7.4665]
[1725627611977,432.02902438,133.95,133.94,7.466]
[1725627612376,432.02902438,133.95,133.93,7.4665]
[1725627612551,432.02902438,133.95,133.92,26.134]
[1725627612749,432.02902438,133.95,133.93,7.4663]
[1725627612946,432.02902438,133.95,133.94,7.466]
[1725627613252,432.02902438,133.95,133.94,52.466]
[1725627614065,432.02902438,133.95,133.94,100.9127]
[1725627614066,256.57762406,133.95,133.94,100.9127]
[1725627614264,213.70157981,133.95,133.94,110.9127]
[1725627614492,199.45567981,133.95,133.94,110.9127]
[1725627614949,194.22907981,133.95,133.94,110.9127]
[1725627615159,188.18217981,133.95,133.94,110.9127]
[1725627615357,180.08967981,133.95,133.94,110.9127]
[1725627615555,175.92987981,133.95,133.94,100.9127]
[1725627615760,169.58857981,133.95,133.94,100.9127]
[1725627616047,155.71067981,133.95,133.94,164.46623635]
[1725627616253,105.34837981,133.95,133.94,203.24953635]
[1725627616457,66.56697981,133.95,133.94,203.24953635]
[1725627616668,44.07107981,133.95,133.94,203.24953635]
[1725627616869,19.15807981,133.95,133.94,203.24953635]
[1725627617072,1.29925508,134.01,134.0,85.8627]
[1725627617254,1.29925508,134.01,134.0,159.41623635]
[1725627618283,16.6554,134.13,134.07,18.6466]
[1725627618665,7.4581,134.09,134.04,26.1106]
[1725627618986,16.6554,134.13,134.05,7.4597]
[1725627618987,7.4572,134.1,134.05,7.4597]
[1725627619389,1.29922879,134.09,134.05,7.4597]
[1725627619890,1.29922879,134.09,134.06,18.6477]
[1725627620286,1.29922879,134.09,134.08,7.4582]
[1725627620581,1.29922879,134.09,134.07,7.4586]
[1725627620779,1.29922879,134.09,134.06,18.6477]
[1725627620989,1.29922879,134.09,134.08,7.4582]
[1725627621361,1.29922879,134.09,134.08,44.7493]
[1725627621660,16.1839,134.18,134.14,7.4548]
[1725627621867,16.1839,134.18,134.14,8.66080951]
[1725627622078,16.1839,134.18,134.14,7.4548]
[1725627622255,2.17560363,134.15,134.14,7.4548]
[1725627623787,7.455,134.14,134.09,18.6433]
[1725627623980,9.62990363,134.15,134.09,18.6433]
[1725627624292,7.4558,134.13,134.09,18.6433]
[1725627624585,15.6546,134.14,134.06,18.6479]
[1725627624775,23.1095,134.14,134.09,7.4575]
[1725627625084,23.1097,134.14,134.09,26.1016]
[1725627625458,15.6546,134.14,134.1,7.4569]
[1725627625656,23.1095,134.14,134.09,26.1017]
[1725627626299,7.4555,134.13,134.09,18.6441]
[1725627626578,15.6546,134.14,134.08,7.458]
[1725627626781,15.6546,134.14,134.06,18.6475]
[1725627626980,7.4567,134.11,134.06,26.1067]
[1725627627169,23.1096,134.14,134.09,7.4575]
[1725627627889,23.1096,134.14,134.08,18.6448]
[1725627628178,23.1096,134.14,134.03,72.44]
[1725627628179,15.6546,134.14,134.11,7.4561]
[1725627628764,15.6546,134.14,134.1,18.642]
[1725627629163,7.4561,134.12,134.07,18.6464]